bitfinex-derivatives/quotes_SOLF0:USTF0_20250110
["timestamp","ask_amount","ask_price","bid_price","bid_amount"]
[1736521030697,2.6633,187.75,187.71,2.6637]
[1736521031196,19.66065791,187.77,187.59,19.66065791]
[1736521032095,0.85508184,187.76,187.59,19.66065791]
[1736521032300,19.66065791,187.74,187.59,19.66065791]
[1736521032902,5.98,187.8,187.59,19.66065791]
[1736521032903,19.66065791,187.77,187.71,2.6638]
[1736521033093,0.85512452,187.76,187.59,19.66065791]
[1736521033291,19.66065791,187.77,187.62,19.66065791]
[1736521033598,3.2687,187.81,187.62,19.66065791]
[1736521033599,19.66065791,187.8,187.62,19.66065791]
[1736521033798,0.85499315,187.79,187.62,19.66065791]
[1736521033997,0.85499315,187.79,187.74,2.6633]
[1736521034297,19.66065791,187.77,187.64,5.98]
[1736521034501,2.6631,187.76,187.65,1.5089]
[1736521034894,19.66065791,187.77,187.65,1.5089]
[1736521034895,2.6634,187.75,187.71,2.6637]
[1736521035091,19.66065791,187.77,187.66,3.1767]
[1736521036105,2.6634,187.74,187.66,3.1767]
[1736521036800,2.6634,187.75,187.71,2.6637]
[1736521036993,2.6634,187.75,187.66,3.1767]
[1736521036994,19.66065791,187.8,187.66,3.1767]
[1736521037196,0.85470843,187.79,187.66,3.1767]
[1736521037393,0.85470843,187.79,187.72,2.6636]
[1736521037595,0.85470843,187.79,187.66,3.1767]
[1736521038206,19.66065791,187.83,187.66,3.1767]
[1736521038402,0.85469643,187.82,187.66,3.1767]
[1736521038605,2.6627,187.79,187.75,2.6631]
[1736521038801,19.66065791,187.83,187.66,3.1767]
[1736521039011,2.6625,187.81,187.77,2.663]
[1736521039207,1.70945098,187.82,187.68,19.66065791]
[1736521039405,0.85472932,187.82,187.68,19.66065791]
[1736521040108,0.85472932,187.82,187.78,2.6627]
[1736521040412,0.85472932,187.82,187.68,19.66065791]
[1736521040611,0.85472932,187.82,187.66,3.1767]
[1736521040807,19.66065791,187.8,187.66,3.1767]
[1736521041213,0.85472932,187.82,187.66,3.1767]
[1736521041611,2.6629,187.78,187.66,3.1767]
[1736521042206,0.85472932,187.82,187.66,3.1767]
[1736521042411,19.66065791,187.8,187.66,3.1767]
[1736521043007,2.6631,187.76,187.7,2.6639]
[1736521043207,19.66065791,187.77,187.66,3.1767]
[1736521043614,5.98,187.79,187.67,2.6644]
[1736521043615,2.664,187.7,187.67,2.6644]
[1736521043915,19.66065791,187.74,187.66,1.6127]
[1736521044211,2.664,187.7,187.67,2.6644]
[1736521044412,19.66065791,187.74,187.61,84.7135]
[1736521044906,2.6642,187.69,187.65,2.6647]
[1736521045111,19.66065791,187.71,187.61,84.7135]
[1736521045312,3.2319,187.76,187.53,78.99064338]
[1736521045313,19.66065791,187.68,187.53,78.99064338]
[1736521045613,19.66065791,187.68,187.54,3.5865]
[1736521045814,19.66065791,187.65,187.54,3.5865]
[1736521046112,3.0701,187.67,187.54,3.5865]
[1736521046307,5.98,187.7,187.54,3.5865]
[1736521046904,5.98,187.7,187.65,2.6646]
[1736521047307,8.644,187.7,187.66,2.6645]
[1736521047509,5.98,187.7,187.56,19.66065791]
[1736521047812,5.98,187.7,187.54,3.5865]
[1736521047813,2.6645,187.67,187.62,2.665]
[1736521048014,5.98,187.7,187.56,19.66065791]
[1736521048408,3.0701,187.73,187.59,19.66065791]
[1736521048716,25.64065791,187.77,187.6,7.5225]
[1736521048917,27.14655791,187.77,187.62,19.66065791]
[1736521049313,2.6637,187.73,187.66,2.6645]
[1736521049511,19.66065791,187.74,187.61,3.1636]
[1736521049915,2.6642,187.69,187.65,2.6646]
[1736521050117,19.66065791,187.74,187.61,1.5538]
[1736521050417,1.5045,187.72,187.61,1.5538]
[1736521050719,2.6643,187.68,187.64,2.6648]
[1736521050915,19.66065791,187.71,187.61,1.5538]
[1736521051117,2.6646,187.66,187.62,2.6651]
[1736521051307,19.66065791,187.71,187.61,1.5538]
[1736521051618,2.6644,187.68,187.64,2.6648]
[1736521051916,19.66065791,187.71,187.61,1.5538]
[1736521052213,2.664,187.71,187.61,1.5538]
[1736521052818,19.66065791,187.71,187.61,1.5538]
[1736521053014,0.85430902,187.7,187.57,1.6098]
[1736521053216,0.85436525,187.71,187.58,1.5845]
[1736521053419,1.5045,187.72,187.58,1.5845]
[1736521053620,0.85423823,187.71,187.58,1.5845]
[1736521053918,2.6645,187.67,187.58,1.5845]
[1736521054122,19.66065791,187.65,187.54,3.5865]
[1736521054322,19.66065791,187.62,187.54,3.5865]
[1736521054519,19.66065791,187.59,187.54,3.5865]
[1736521055513,1.5074,187.61,187.54,3.5865]
[1736521055719,4.1727,187.61,187.55,2.666]
[1736521055914,1.5074,187.61,187.54,3.5865]
[1736521056217,19.66065791,187.65,187.54,3.5865]
[1736521056424,3.1745,187.66,187.54,3.5865]
[1736521056618,3.0184,187.66,187.54,23.24715791]
[1736521056818,1.511,187.66,187.54,23.24715791]
[1736521057024,1.5074,187.7,187.57,19.66065791]
[1736521057224,5.98,187.73,187.58,3.2188]
[1736521057421,1.6668,187.76,187.6,19.66065791]
[1736521057620,1.6668,187.76,187.63,19.66065791]
[1736521058014,1.6038,187.79,187.66,19.66065791]
[1736521058522,1.6038,187.79,187.72,2.6637]
[1736521058717,1.6038,187.79,187.63,19.66065791]
[1736521058923,1.6038,187.79,187.68,2.6642]
[1736521058924,2.6634,187.74,187.68,2.6642]
[1736521059127,2.6634,187.74,187.63,19.66065791]
[1736521059426,19.66065791,187.77,187.63,19.66065791]
[1736521059626,19.66065791,187.77,187.69,2.664]
[1736521059627,2.6633,187.75,187.69,2.664]
[1736521059827,19.66065791,187.77,187.63,19.66065791]
[1736521060027,1.6038,187.79,187.63,19.66065791]
[1736521060230,0.85354576,187.78,187.63,19.66065791]
[1736521060524,2.6633,187.75,187.69,2.664]
[1736521060824,1.6038,187.79,187.63,19.66065791]
[1736521061129,2.6637,187.72,187.6,19.66065791]
[1736521061724,2.6637,187.72,187.66,2.6644]
[1736521061924,2.6637,187.72,187.6,19.66065791]
[1736521062519,2.6637,187.72,187.67,2.6644]
[1736521062829,2.6637,187.72,187.6,19.66065791]
[1736521063219,19.66065791,187.77,187.6,19.66065791]
[1736521063427,0.85367879,187.76,187.6,19.66065791]
[1736521063727,19.66065791,187.74,187.58,9.1988]
[1736521063929,0.85367879,187.73,187.58,9.1988]
[1736521064222,19.66065791,187.74,187.58,3.2188]
[1736521064426,19.66065791,187.74,187.58,9.1988]
[1736521064628,2.664,187.71,187.66,2.6645]
[1736521065032,19.66065791,187.74,187.58,9.1988]
[1736521065222,0.8534156,187.73,187.63,2.6649]
[1736521065417,2.4794156,187.73,187.58,9.1988]
[1736521065623,19.66065791,187.71,187.58,3.2188]
[1736521065826,19.66065791,187.71,187.62,2.6651]
[1736521066329,19.66065791,187.71,187.6,2.6654]
[1736521066532,1.626,187.73,187.6,2.6654]
[1736521066533,19.66065791,187.68,187.6,2.6654]
[1736521066925,2.6648,187.65,187.6,2.6654]
[1736521067130,2.6648,187.65,187.58,3.2188]
[1736521067324,2.665,187.64,187.6,2.6654]
[1736521067924,2.665,187.64,187.54,3.5865]
[1736521067925,19.66065791,187.65,187.57,2.6658]
[1736521068125,19.66065791,187.65,187.54,3.5865]
[1736521068324,2.6656,187.59,187.54,6.2526]
[1736521068530,19.66065791,187.62,187.54,3.5865]
[1736521071337,1.626,187.73,187.58,19.66065791]
[1736521071531,2.6639,187.71,187.66,2.6645]
[1736521071736,2.6639,187.71,187.58,19.66065791]
[1736521071931,19.66065791,187.74,187.58,19.66065791]
[1736521072127,19.66065791,187.77,187.62,19.66065791]
[1736521072329,1.5636,187.78,187.63,3.297]
[1736521072635,2.6631,187.76,187.71,2.6637]
[1736521072838,21.32055791,187.8,187.65,19.66065791]
[1736521073037,2.6628,187.79,187.73,2.6635]
[1736521073230,19.66065791,187.83,187.68,19.66065791]
[1736521073431,0.85361859,187.82,187.68,19.66065791]
[1736521073732,2.6627,187.8,187.73,2.6634]
[1736521073937,2.6627,187.8,187.68,19.66065791]
[1736521074436,2.663,187.77,187.65,19.66065791]
[1736521075237,19.66065791,187.8,187.64,1.6229]
[1736521075434,19.66065791,187.8,187.67,2.6643]
[1736521075630,2.6637,187.72,187.64,1.6229]
[1736521076036,19.66065791,187.77,187.64,1.6229]
[1736521076236,2.6637,187.72,187.64,1.6229]
[1736521076434,19.66065791,187.74,187.66,2.6645]
[1736521076636,19.66065791,187.77,187.64,1.6229]
[1736521077039,2.6637,187.73,187.68,2.6641]
[1736521077335,19.66065791,187.77,187.64,1.6229]
[1736521077534,0.85337085,187.76,187.64,1.6229]
[1736521077729,2.6638,187.71,187.64,1.6229]
[1736521077928,19.66065791,187.77,187.64,1.6229]
[1736521078133,0.85344302,187.76,187.64,1.6229]
[1736521078331,19.66065791,187.74,187.63,3.297]
[1736521078531,19.66065791,187.74,187.63,1.6278]
[1736521078837,0.85332796,187.73,187.63,1.6278]
[1736521079033,19.66065791,187.71,187.63,1.6278]
[1736521079246,19.66065791,187.71,187.61,2.6652]
[1736521079432,19.66065791,187.68,187.57,1.5425]
[1736521080338,2.6649,187.64,187.59,2.6654]
[1736521080537,19.66065791,187.68,187.57,1.5425]
[1736521080938,19.66065791,187.68,187.59,2.6655]
[1736521081440,19.66065791,187.68,187.57,1.5425]
[1736521081739,2.6648,187.64,187.57,1.5425]
[1736521082136,19.66065791,187.68,187.57,1.5425]
[1736521082340,19.66065791,187.71,187.57,1.5425]
[1736521082540,19.66065791,187.68,187.57,1.5425]
[1736521082841,2.6651,187.62,187.55,1.5991]
[1736521083038,19.66065791,187.65,187.55,1.5991]
[1736521083242,19.66065791,187.65,187.56,2.6659]
[1736521084135,19.66065791,187.62,187.54,3.5865]
[1736521084446,2.6661,187.55,187.54,3.5865]
[1736521088347,19.66065791,187.56,187.41,83.16]
[1736521088536,19.66065791,187.52,187.4,7.53455514]
[1736521088844,19.66065791,187.49,187.4,7.53455514]
[1736521090545,2.6674,187.47,187.42,2.6679]
[1736521090845,19.66065791,187.49,187.42,2.6679]
[1736521091242,2.6673,187.47,187.42,2.6679]
[1736521091438,1.5323,187.58,187.4,7.53455514]
[1736521091439,19.66065791,187.55,187.45,2.6675]
[1736521091645,2.6671,187.48,187.4,7.53455514]
[1736521091846,19.66065791,187.52,187.4,7.53455514]
[1736521092046,25.64065791,187.56,187.4,7.53455514]
[1736521092238,0.85158922,187.55,187.4,7.53455514]
[1736521092943,0.85158922,187.55,187.48,2.667]
[1736521093353,2.6667,187.51,187.46,2.6674]
[1736521093540,0.85158922,187.55,187.41,19.66065791]
[1736521095247,2.6666,187.52,187.47,2.6671]
[1736521095447,0.85158922,187.55,187.47,2.6671]
[1736521095646,2.6666,187.52,187.47,2.6671]
[1736521095847,19.66065791,187.56,187.48,2.667]
[1736521096145,2.6665,187.53,187.48,2.667]
[1736521096544,2.6665,187.53,187.41,19.66065791]
[1736521096545,19.66065791,187.56,187.41,19.66065791]
[1736521096747,19.66065791,187.56,187.47,2.6672]
[1736521096945,2.6666,187.52,187.47,2.6672]
[1736521098149,2.6666,187.52,187.41,19.66065791]
[1736521098351,2.6667,187.51,187.4,7.53455514]
[1736521098547,19.66065791,187.56,187.4,7.53455514]
[1736521098747,0.84927895,187.55,187.45,2.6675]
[1736521099146,2.6669,187.5,187.45,2.6675]
[1736521099548,2.6669,187.5,187.46,2.6674]
[1736521100051,2.6667,187.51,187.46,2.6674]
[1736521100248,2.6667,187.51,187.4,7.53455514]
[1736521100450,2.6667,187.51,187.47,2.6672]
[1736521100951,2.6668,187.5,187.46,2.6673]
[1736521101152,19.66065791,187.56,187.4,7.53455514]
[1736521101452,19.66065791,187.53,187.4,7.53455514]
[1736521101751,2.6669,187.5,187.43,2.6678]
[1736521101949,19.66065791,187.53,187.43,2.6678]
[1736521102352,2.6673,187.47,187.43,2.6678]
[1736521102648,25.62065791,187.5,187.4,7.53455514]
[1736521102854,25.62065791,187.5,187.4,1.5453]
[1736521103151,25.62065791,187.5,187.4,4.2134]
[1736521103152,2.6676,187.45,187.4,4.2134]
[1736521103552,25.62065791,187.5,187.4,1.5453]
[1736521104453,2.6677,187.44,187.4,4.2135]
[1736521106152,5.96,187.54,187.4,1.5453]
[1736521107057,5.96,187.54,187.41,19.66065791]
[1736521107853,2.6665,187.52,187.48,2.667]
[1736521108157,5.96,187.55,187.41,19.66065791]
[1736521108357,2.6659,187.57,187.53,2.6663]
[1736521108858,7.5728,187.61,187.53,2.6663]
[1736521109047,7.5728,187.61,187.54,2.6662]
[1736521109451,2.6663,187.54,187.45,3.2486]
[1736521109761,19.66065791,187.59,187.45,3.2486]
[1736521109963,2.6665,187.52,187.45,3.2486]
[1736521110452,2.6664,187.53,187.45,3.2486]
[1736521110758,19.66065791,187.56,187.45,3.2486]
[1736521111156,2.6665,187.53,187.45,3.2486]
[1736521111352,19.66065791,187.59,187.45,3.2486]
[1736521111658,7.5728,187.61,187.46,19.66065791]
[1736521111863,19.66065791,187.59,187.45,3.2486]
[1736521112062,2.6665,187.53,187.48,2.6671]
[1736521112253,19.66065791,187.59,187.48,2.6671]
[1736521112560,7.5728,187.61,187.46,2.6674]
[1736521112561,2.6667,187.51,187.46,2.6674]
[1736521112761,2.6667,187.51,187.45,3.2486]
[1736521113060,19.66065791,187.59,187.45,3.2486]
[1736521113258,2.6664,187.54,187.45,3.2486]
[1736521113561,19.66065791,187.59,187.45,3.2486]
[1736521113964,2.6661,187.55,187.49,2.6669]
[1736521114159,2.6661,187.55,187.45,3.2486]
[1736521114366,7.5728,187.61,187.46,19.66065791]
[1736521114564,19.66065791,187.62,187.46,19.66065791]
[1736521114965,5.96,187.64,187.46,19.66065791]
[1736521115168,19.66065791,187.65,187.49,19.66065791]
[1736521115463,1.6648,187.66,187.5,1.5295]
[1736521116160,2.6651,187.63,187.58,2.6656]
[1736521116366,1.6648,187.66,187.53,1.5083]
[1736521116862,2.6652,187.62,187.57,2.6657]
[1736521117264,2.6652,187.62,187.54,1.6586]
[1736521117461,2.6652,187.62,187.58,2.6657]
[1736521117662,2.6648,187.64,187.54,1.6586]
[1736521117864,1.5672,187.73,187.55,19.66065791]
[1736521118161,2.6645,187.67,187.55,19.66065791]
[1736521118771,2.6646,187.66,187.55,19.66065791]
[1736521119065,19.66065791,187.71,187.55,19.66065791]
[1736521119266,2.6646,187.66,187.59,2.6654]
[1736521119460,2.6646,187.66,187.6,1.5752]
[1736521119661,19.66065791,187.71,187.6,1.5752]
[1736521119862,2.6645,187.67,187.6,1.5752]
[1736521120473,2.6645,187.67,187.62,2.6651]
[1736521120768,2.6645,187.67,187.6,1.5752]
[1736521120968,2.6647,187.65,187.6,1.5752]
[1736521121368,2.6645,187.67,187.63,2.6649]
[1736521121665,19.66065791,187.71,187.6,1.5752]
[1736521121967,2.6643,187.68,187.62,2.665]
[1736521122162,19.66065791,187.71,187.6,1.5752]
[1736521122367,19.66065791,187.74,187.6,1.5752]
[1736521122569,2.664,187.7,187.66,2.6645]
[1736521123169,2.6638,187.71,187.66,2.6645]
[1736521124167,25.62065791,187.77,187.61,21.26335791]
[1736521124168,2.6637,187.73,187.61,21.26335791]
[1736521124371,19.66065791,187.77,187.61,21.26335791]
[1736521124866,2.6636,187.73,187.61,21.26335791]
[1736521125070,1.5149,187.79,187.64,19.66065791]
[1736521125272,0.84827411,187.78,187.65,1.6112]
[1736521125468,2.6633,187.75,187.65,1.6112]
[1736521126475,2.6633,187.75,187.71,2.6638]
[1736521126663,2.6631,187.76,187.71,2.6638]
[1736521127371,2.6629,187.78,187.73,2.6635]
[1736521127576,2.6629,187.78,187.67,19.66065791]
[1736521127770,2.6627,187.8,187.76,2.6631]
[1736521127975,19.66065791,187.86,187.71,3.1709]
[1736521128374,0.84866074,187.85,187.71,3.1709]
[1736521128574,2.6625,187.81,187.76,2.663]
[1736521128776,19.66065791,187.86,187.76,2.663]
[1736521128972,0.84861931,187.85,187.71,3.1709]
[1736521129174,2.6627,187.8,187.75,2.6632]
[1736521129369,2.6627,187.8,187.71,3.1709]
[1736521129370,19.66065791,187.83,187.71,3.1709]
[1736521131071,0.84824933,187.82,187.71,3.1709]
[1736521131267,2.663,187.77,187.72,2.6636]
[1736521131676,19.66065791,187.8,187.71,1.5095]
[1736521132375,2.6634,187.74,187.71,1.5095]
[1736521132775,2.6636,187.73,187.68,2.6643]
[1736521133875,2.6636,187.73,187.65,4.847]
[1736521134076,2.6636,187.73,187.69,2.664]
[1736521134270,3.0995,187.79,187.69,2.664]
[1736521134575,19.66065791,187.77,187.65,4.847]
[1736521134979,9.0595,187.79,187.7,2.6639]
[1736521135476,9.0595,187.79,187.65,4.847]
[1736521135975,0.8483283,187.78,187.67,19.66065791]
[1736521136273,19.66065791,187.83,187.67,19.66065791]
[1736521136475,2.663,187.77,187.67,19.66065791]
[1736521137276,2.663,187.77,187.73,2.6635]
[1736521137469,19.66065791,187.83,187.67,19.66065791]
[1736521137670,2.663,187.78,187.67,19.66065791]
[1736521137875,2.663,187.78,187.74,2.6633]
[1736521138276,2.6628,187.79,187.67,19.66065791]
[1736521138478,19.66065791,187.83,187.67,19.66065791]
[1736521138678,19.66065791,187.83,187.74,2.6633]
[1736521139178,2.6626,187.8,187.74,2.6633]
[1736521139380,19.66065791,187.83,187.74,2.6633]
[1736521140080,19.66065791,187.83,187.75,2.6632]
[1736521140284,19.66065791,187.83,187.67,19.66065791]
[1736521140680,2.663,187.78,187.74,2.6634]
[1736521140985,19.66065791,187.83,187.65,10.787]
[1736521141186,0.84924432,187.82,187.65,10.787]
[1736521141385,0.84924432,187.82,187.67,19.66065791]
[1736521141594,2.6624,187.81,187.77,2.6629]
[1736521141886,22.82835791,187.86,187.7,19.66065791]
[1736521142089,0.84948987,187.85,187.7,19.66065791]
[1736521142292,2.6625,187.81,187.76,2.663]
[1736521143590,2.6627,187.79,187.67,19.66065791]
[1736521143777,22.82835791,187.86,187.67,19.66065791]
[1736521143983,0.84861836,187.85,187.67,19.66065791]
[1736521144289,19.66065791,187.83,187.67,19.66065791]
[1736521144888,2.6628,187.78,187.74,2.6633]
[1736521145489,2.6627,187.79,187.75,2.6632]
[1736521146091,2.6622,187.83,187.67,19.66065791]
[1736521146385,21.21745791,187.86,187.67,19.66065791]
[1736521146588,2.6626,187.8,187.76,2.663]
[1736521147090,21.21745791,187.86,187.76,2.663]
[1736521147291,0.84805393,187.85,187.67,19.66065791]
[1736521147490,19.66065791,187.87,187.67,19.66065791]
[1736521147691,2.6623,187.82,187.67,19.66065791]
[1736521148285,19.66065791,187.87,187.73,19.66065791]
[1736521148491,1.5119,187.89,187.74,4.8182]
[1736521149289,2.6619,187.85,187.82,2.6622]
[1736521149491,1.6523,187.91,187.74,4.8182]
[1736521149687,1.6523,187.91,187.76,19.66065791]
[1736521150095,1.6351,187.94,187.79,19.66065791]
[1736521150594,2.661,187.91,187.87,2.6615]
[1736521151091,2.6612,187.9,187.86,2.6617]
[1736521151296,2.6612,187.9,187.79,19.66065791]
[1736521151495,2.6612,187.9,187.76,19.66065791]
[1736521151697,2.6615,187.88,187.76,19.66065791]
[1736521152095,19.66065791,187.92,187.76,19.66065791]
[1736521152298,19.66065791,187.86,187.74,4.8182]
[1736521152695,3.1382,187.85,187.75,2.6632]
[1736521152897,2.6625,187.81,187.74,3.1775]
[1736521153291,3.1382,187.85,187.74,1.5118]
[1736521153597,2.6627,187.79,187.74,1.5118]
[1736521153999,19.66065791,187.83,187.74,1.5118]
[1736521154197,19.66065791,187.8,187.71,1.6569]
[1736521154500,19.66065791,187.8,187.68,1.6352]
[1736521155396,19.66065791,187.8,187.7,2.664]
[1736521155893,2.6632,187.76,187.7,2.664]
[1736521157000,3.1382,187.85,187.68,1.6352]
[1736521157001,2.6637,187.73,187.68,1.6352]
[1736521157701,2.6643,187.68,187.63,83.16]
[1736521157904,19.66065791,187.74,187.63,83.16]
[1736521158494,19.66065791,187.74,187.69,2.664]
[1736521158800,21.28475791,187.77,187.63,83.16]
[1736521159103,21.28475791,187.77,187.71,2.6638]
[1736521159298,2.6633,187.75,187.71,2.6638]
[1736521159500,21.28475791,187.77,187.71,2.6638]
[1736521159698,5.94,187.79,187.63,83.16]
[1736521159898,2.663,187.78,187.64,19.66065791]
[1736521160401,2.663,187.78,187.72,2.6636]
[1736521160903,5.94,187.79,187.64,19.66065791]
[1736521161205,5.94,187.79,187.63,83.16]
[1736521161598,19.66065791,187.77,187.63,83.16]
[1736521162000,19.66065791,187.77,187.66,2.6644]
[1736521162202,19.66065791,187.77,187.63,83.16]
[1736521163295,2.6639,187.71,187.66,2.6644]
[1736521163496,19.66065791,187.74,187.63,83.16]
[1736521163904,2.6641,187.69,187.64,2.6647]
[1736521164209,2.6641,187.69,187.6,1.5413]
[1736521164405,2.6641,187.69,187.64,2.6647]
[1736521164708,2.6643,187.68,187.64,2.6647]
[1736521164904,2.6643,187.68,187.6,1.5413]
[1736521165200,2.6643,187.68,187.64,2.6647]
[1736521165404,2.6641,187.7,187.6,1.5413]
[1736521165605,2.6641,187.7,187.66,2.6644]
[1736521167307,19.66065791,187.74,187.66,2.6644]
[1736521167509,2.6639,187.71,187.66,2.6644]
[1736521167807,19.66065791,187.74,187.6,1.5413]
[1736521168198,2.37302121,187.73,187.6,1.5413]
[1736521168399,1.5246,187.73,187.6,1.5413]
[1736521168703,2.6645,187.67,187.62,2.665]
[1736521168900,19.66065791,187.7,187.6,1.5413]
[1736521169609,2.6647,187.65,187.61,2.6652]
[1736521169801,19.66065791,187.7,187.61,2.6652]
[1736521170407,2.6646,187.66,187.61,2.6652]
[1736521170610,19.66065791,187.7,187.63,2.6649]
[1736521170813,2.6644,187.68,187.6,1.5413]
[1736521171109,19.66065791,187.7,187.6,1.5413]
[1736521171606,2.6647,187.66,187.6,1.5413]
[1736521171801,2.6647,187.66,187.61,2.6651]
[1736521172006,2.6644,187.68,187.6,1.5413]
[1736521172303,2.6644,187.68,187.63,2.6649]
[1736521172503,19.66065791,187.7,187.6,1.5413]
[1736521172700,2.6647,187.65,187.6,1.5413]
[1736521172919,2.6647,187.65,187.61,2.6652]
[1736521173208,19.66065791,187.7,187.6,1.5413]
[1736521174607,0.84863232,187.69,187.6,1.5413]
[1736521175110,19.66065791,187.7,187.6,1.5413]
[1736521175409,0.84881583,187.69,187.6,1.5413]
[1736521175608,19.66065791,187.7,187.6,1.5413]
[1736521175808,0.84883207,187.69,187.6,1.5413]
[1736521176009,0.84883207,187.69,187.61,2.6651]
[1736521176210,19.66065791,187.7,187.61,2.6651]
[1736521176410,2.6647,187.66,187.61,2.6651]
[1736521177209,2.6648,187.65,187.61,2.6651]
[1736521177807,2.6645,187.67,187.63,2.6649]
[1736521178106,12.28039216,187.68,187.6,1.5413]
[1736521178510,2.6649,187.64,187.6,4.2066]
[1736521179011,2.6647,187.65,187.61,2.6652]
[1736521179310,12.28039216,187.68,187.6,1.5413]
[1736521180506,12.28039216,187.71,187.6,1.5413]
[1736521180708,12.28039216,187.71,187.64,2.6648]
[1736521181101,12.28039216,187.71,187.6,1.5413]
[1736521181303,2.6648,187.65,187.61,2.6652]
[1736521181608,12.28039216,187.68,187.6,1.5413]
[1736521181906,2.6646,187.66,187.62,2.6651]
[1736521182105,12.28039216,187.68,187.6,1.5413]
[1736521182510,2.6643,187.68,187.64,2.6648]
[1736521182809,12.28039216,187.74,187.6,13.82169216]
[1736521183208,12.28039216,187.77,187.63,12.28039216]
[1736521183513,12.28039216,187.77,187.71,2.6638]
[1736521183514,2.6634,187.74,187.71,2.6638]
[1736521184109,2.6634,187.74,187.7,2.6639]
[1736521184409,2.6636,187.73,187.63,12.28039216]
[1736521184613,12.28039216,187.77,187.63,12.28039216]
[1736521185211,2.6635,187.74,187.7,2.664]
[1736521185610,12.28039216,187.77,187.63,12.28039216]
[1736521186213,2.6634,187.75,187.71,2.6638]
[1736521187213,2.6634,187.74,187.7,2.6639]
[1736521187718,2.6633,187.75,187.71,2.6637]
[1736521187917,12.28039216,187.77,187.66,12.28039216]
[1736521189124,2.6634,187.74,187.71,2.6638]
[1736521189419,12.28039216,187.77,187.66,12.28039216]
[1736521189819,12.28039216,187.77,187.63,12.28039216]
[1736521190514,2.6636,187.73,187.63,12.28039216]
[1736521191722,2.6636,187.73,187.7,2.664]
[1736521191918,12.28039216,187.77,187.63,12.28039216]
[1736521192119,2.6636,187.73,187.63,12.28039216]
[1736521192318,12.28039216,187.77,187.63,12.28039216]
[1736521193422,12.28039216,187.74,187.6,13.82169216]
[1736521194116,2.6642,187.69,187.66,2.6645]
[1736521194313,12.28039216,187.71,187.6,1.5413]
[1736521195321,2.6641,187.7,187.6,1.5413]
[1736521195523,12.28039216,187.77,187.65,12.28039216]
[1736521195718,3.1596,187.79,187.68,12.28039216]
[1736521195923,3.1596,187.79,187.73,2.6635]
[1736521196718,3.1596,187.79,187.69,1.6255]
[1736521197220,12.28039216,187.77,187.69,1.6255]
[1736521197820,12.28039216,187.77,187.62,12.28039216]
[1736521198123,12.28039216,187.74,187.64,1.6434]
[1736521198424,2.6642,187.69,187.65,2.6647]
[1736521199221,12.28039216,187.74,187.64,1.6434]
[1736521199421,2.6638,187.71,187.66,2.6645]
[1736521200222,12.28039216,187.71,187.54,7.3603294]
[1736521200421,12.28039216,187.57,187.54,7.3603294]
[1736521200622,2.6661,187.55,187.54,7.3603294]
[1736521200825,2.6661,187.55,187.54,4.6986294]
[1736521201222,2.6662,187.54,187.52,58.88263527]
[1736521201423,19.67646815,187.54,187.5,165.12901074]
[1736521201624,19.67646815,187.54,187.5,96.07202446]
[1736521201819,2.6667,187.51,187.5,73.23693099]
[1736521202026,5.92,187.51,187.36,93.39023753]
[1736521202225,2.6675,187.45,187.38,2.6685]
[1736521202423,19.67646815,187.5,187.36,93.39023753]
[1736521202828,2.6674,187.46,187.39,2.6683]
[1736521203121,19.67646815,187.44,187.25,201.63123374]
[1736521203327,19.67646815,187.44,187.29,2.6697]
[1736521203328,2.6685,187.38,187.29,2.6697]
[1736521203519,2.6685,187.38,187.26,24.48116815]
[1736521203718,19.67646815,187.41,187.26,4.8047]
[1736521203925,19.67646815,187.38,187.25,201.63123374]
[1736521204231,19.67646815,187.38,187.2,104.35836815]
[1736521204626,19.67646815,187.35,187.2,1.5219]
[1736521204926,2.6699,187.29,187.2,1.5219]
[1736521205230,19.67646815,187.32,187.2,1.5219]
[1736521205530,2.6703,187.26,187.19,3.2828]
[1736521205828,19.67646815,187.29,187.19,3.2828]